[Event "POR-chT 1st Divison 2018"]
[Site "Maia"]
[Date "2018.07.17"]
[Round "2"]
[White "Vassallo Barroche, Mauricio"]
[Black "Pereira, Ruben"]
[Result "0-1"]
[ECO "B50"]
[WhiteElo "2386"]
[BlackElo "2420"]
[Annotator "NA"]
[PlyCount "92"]
[EventDate "2018.07.16"]
[EventType "team-tourn"]
[EventCountry "POR"]
[SourceTitle "playchess.com"]
[Source "ChessBase"]
[SourceQuality "1"]
[TimeControl "5400+30"]

1. Nf3 {[%emt 0:02:23]} c5 {[%emt 0:00:01]} 2. e4 {[%emt 0:04:39]} d6 {[%emt 0:00:58]} 3. c3 {[%emt 0:00:59]} Nf6 {[%emt 0:00:38]} 4. Be2 {[%emt 0:00:08]} Nbd7 {[%emt 0:00:33]} 5. d3 {[%emt 0:00:10]} e5 {[%emt 0:03:21] B50: Sizilianisch (Verschiedenes mit 2...d6)} (5... b6 6. O-O e6 7. Nbd2 Bb7 8. Re1 Be7 9. Bf1 e5 10. d4 cxd4 11. cxd4 exd4 12. Nxd4 O-O 13. b3 Re8 {½-½ (46) Ganguly,S (2668)-Salem,A (2656) Doha 2016}) 6. O-O {[%emt 0:00:51] LiveBook: 4 Games} Be7 {[%emt 0:00:07]} 7. Re1 {[%emt 0:04:06]} O-O {[%emt 0:00:56]} 8. Bf1 {[%emt 0:00:08]} Re8 {[%emt 0:00:28]} 9. Nbd2 {[%emt 0:08:29]} Bf8 $146 {[%emt 0:02:19]} ({Vorgänger:} 9... Rb8 10. a4 b6 11. Nc4 Bf8 12. Ne3 Bb7 13. Qb3 {½-½ (73) Alavkin,A (2375)-Dubinsky,R (2295) Novgorod 1997}) 10. a4 {[%emt 0:02:40]} b6 {[%emt 0:02:20]} 11. a5 {[%emt 0:06:56]} b5 {[%emt 0:02:00]} 12. d4 {[%emt 0:08:29]} a6 {[%emt 0:00:44]} 13. b3 {[%emt 0:08:01]} exd4 {[%emt 0:03:52]} 14. cxd4 {[%emt 0:00:01]} cxd4 {[%emt 0:00:25]} 15. Nxd4 {[%emt 0:01:41]} Bb7 {[%emt 0:00:13]} 16. Bb2 {[%emt 0:00:39]} Nxe4 {[%emt 0:03:50]} 17. Nf5 {[%emt 0:05:50]} Qg5 {[%emt 0:32:45]} 18. Nxe4 {[%emt 0:01:22]} Qxf5 {[%emt 0:09:27]} 19. Nxd6 {[%emt 0:04:36]} Rxe1 $1 {[%emt 0:01:11]} 20. Nxf5 {[%emt 0:00:05]} Rxd1 {[%emt 0:00:06]} 21. Rxd1 {[%emt 0:00:08]} Nc5 {[%emt 0:00:05]} 22. b4 {[%emt 0:03:21]} Na4 {[%emt 0:01:59]} 23. Be5 {[%emt 0:02:08]} Bxb4 {[%emt 0:07:24]} 24. Rd7 {[%emt 0:10:50]} Bc6 {[%emt 0:00:40]} 25. Rc7 {[%emt 0:01:03]} Be4 {[%emt 0:00:11]} 26. Nxg7 {[%emt 0:01:27]} Bxa5 {[%emt 0:00:38]} 27. Re7 {[%emt 0:00:18]} Bb4 $17 {[%emt 0:03:38]} (27... Kf8 $142 28. Bd6 Rd8 29. Rxe4+ Rxd6) 28. Rc7 {[%emt 0:01:22]} Bg6 {[%emt 0:01:51]} 29. g4 {[%emt 0:01:52]} Ba5 {[%emt 0:08:44]} 30. Re7 {[%emt 0:00:20]} Bc3 {[%emt 0:05:58]} 31. Bxc3 {[%emt 0:03:10]} Nxc3 {[%emt 0:00:06]} 32. Nf5 {[%emt 0:00:03]} Bxf5 {[%emt 0:00:06]} 33. gxf5 {[%emt 0:00:02]} Kg7 {[%emt 0:00:33]} 34. Rc7 {[%emt 0:00:09]} Nd5 {[%emt 0:00:13]} 35. Rb7 {[%emt 0:00:10]} Kf6 {[%emt 0:01:51]} 36. Rd7 {[%emt 0:01:49]} Nf4 {[%emt 0:01:56]} 37. h3 {[%emt 0:00:12]} h5 {[%emt 0:00:48]} 38. Kh2 {[%emt 0:01:09]} h4 {[%emt 0:00:12]} 39. Rb7 {[%emt 0:00:04]} Kxf5 {[%emt 0:02:05]} 40. Rxf7+ {[%emt 0:00:05]} Ke4 {[%emt 0:00:48]} 41. Rb7 {[%emt 0:00:06]} Kf3 {[%emt 0:00:49]} 42. Rf7 {[%emt 0:00:06]} Rg8 {[%emt 0:00:42]} 43. Rf6 {[%emt 0:02:02]} Rg6 {[%emt 0:00:13]} 44. Rf7 {[%emt 0:00:16]} b4 {[%emt 0:00:32]} 45. Kh1 {[%emt 0:03:21]} a5 {[%emt 0:01:22]} 46. Bc4 {[%emt 0:00:05]} Rd6 {[%emt 0:00:17]} 0-1

[Event "POR-chT 1st Divison 2018"]
[Site "Maia"]
[Date "2018.07.17"]
[Round "2"]
[White "Sousa, Andre Ventura"]
[Black "Lombaers, Peter"]
[Result "0-1"]
[ECO "B48"]
[WhiteElo "2373"]
[BlackElo "2361"]
[Annotator "NA"]
[PlyCount "82"]
[EventDate "2018.07.16"]
[EventType "team-tourn"]
[EventCountry "POR"]
[SourceTitle "playchess.com"]
[Source "ChessBase"]
[SourceQuality "1"]
[TimeControl "5400+30"]

1. e4 {[%emt 0:00:00]} c5 {[%emt 0:00:00]} 2. Nf3 {[%emt 0:00:00]} e6 {[%emt 0:00:00]} 3. d4 {[%emt 0:00:00]} cxd4 {[%emt 0:00:00]} 4. Nxd4 {[%emt 0:00:00]} Nc6 {[%emt 0:00:00]} 5. Nc3 {[%emt 0:00:00]} Qc7 {[%emt 0:00:00]} 6. Be3 {[%emt 0:00:00]} a6 {[%emt 0:00:04]} 7. Qf3 {[%emt 0:00:00]} d6 {[%emt 0:00:05]} 8. O-O-O {[%emt 0:00:00]} Bd7 {[%emt 0:00:17]} 9. Qg3 {[%emt 0:01:29]} Nf6 {[%emt 0:00:08]} 10. Nxc6 {[%emt 0:00:19]} Bxc6 {[%emt 0:01:06]} 11. f3 {[%emt 0:00:03]} b5 {[%emt 0:10:08]} 12. Kb1 {[%emt 0:03:42]} Rc8 {[%emt 0:06:40]} 13. a3 {[%emt 0:07:55]} Qb7 {[%emt 0:09:46]} 14. Na2 {[%emt 0:31:40]} a5 {[%emt 0:08:57]} 15. Bd2 {[%emt 0:04:50]} Ra8 {[%emt 0:12:25]} 16. Qe1 {[%emt 0:09:23]} Qb6 {[%emt 0:12:49]} 17. Qe3 {[%emt 0:13:22]} Qb7 $11 {[%emt 0:03:35]} 18. Qe1 {[%emt 0:03:10]} Qb6 {[%emt 0:01:43]} 19. Qe3 {[%emt 0:06:37]} Qb8 {[%emt 0:00:07]} 20. g4 {[%emt 0:07:34]} Nd7 {[%emt 0:11:28]} 21. Qe1 {[%emt 0:02:15]} Ne5 {[%emt 0:03:25]} 22. Bxa5 {[%emt 0:01:30]} Nxf3 {[%emt 0:00:45]} 23. Qc3 {[%emt 0:00:16]} Ne5 {[%emt 0:00:55]} 24. Bd3 {[%emt 0:03:50]} Be7 25. Rhg1 O-O {[%emt 0:01:17]} 26. Bb4 {[%emt 0:02:32]} Rc8 {[%emt 0:08:28]} 27. Qb3 {[%emt 0:01:55]} Qb7 28. Bc3 Nxd3 {[%emt 0:03:04]} 29. cxd3 {[%emt 0:00:41]} d5 30. Nb4 {[%emt 0:00:59]} dxe4 {[%emt 0:01:10]} 31. dxe4 {[%emt 0:00:03]} Bxe4+ {[%emt 0:02:04]} 32. Ka1 {[%emt 0:00:52]} Rc4 {[%emt 0:01:16]} 33. Rd2 Bxb4 {[%emt 0:00:04]} 34. Bxb4 {[%emt 0:00:35]} Bd5 {[%emt 0:00:08]} 35. Rxd5 {[%emt 0:00:59]} Qxd5 36. Bc3 {[%emt 0:00:02]} b4 {[%emt 0:03:16]} 37. Rd1 {[%emt 0:01:16]} Qc5 38. Bd2 bxa3 {[%emt 0:00:26]} 39. Ba5 {[%emt 0:00:36]} Rc1+ {[%emt 0:01:12]} 40. Ka2 {[%emt 0:00:05]} Rxd1 {[%emt 0:00:08]} 41. Qxd1 {[%emt 0:00:05]} Qxa5 {[%emt 0:00:06]} 0-1

[Event "POR-chT 1st Divison 2018"]
[Site "Maia"]
[Date "2018.07.17"]
[Round "2"]
[White "Espineira Gonzalez, Diego"]
[Black "Kaczur, Florian"]
[Result "0-1"]
[ECO "D30"]
[WhiteElo "2327"]
[BlackElo "2471"]
[Annotator "ChessBase"]
[PlyCount "136"]
[EventDate "2018.07.16"]
[EventType "team-tourn"]
[EventCountry "POR"]
[SourceTitle "playchess.com"]
[Source "ChessBase"]
[SourceQuality "1"]
[TimeControl "5400+30"]

1. d4 {[%emt 0:00:20]} d5 {[%emt 0:00:00]} 2. c4 {[%emt 0:00:08]} e6 {[%emt 0:00:00]} 3. Nf3 {[%emt 0:00:33]} Nf6 {[%emt 0:00:07]} 4. cxd5 {[%emt 0:00:25]} exd5 {[%emt 0:00:07]} 5. Bg5 {[%emt 0:00:46]} c6 {[%emt 0:01:39]} 6. Nc3 {[%emt 0:05:15]} Nbd7 {[%emt 0:04:36]} 7. e3 {[%emt 0:01:06]} h6 {[%emt 0:01:31]} 8. Bf4 {[%emt 0:01:43]} g5 {[%emt 0:05:11]} 9. Bg3 {[%emt 0:00:30]} Nh5 {[%emt 0:01:45]} 10. Be5 {[%emt 0:05:34]} Nxe5 {[%emt 0:01:23]} 11. Nxe5 {[%emt 0:01:02]} Nf6 {[%emt 0:00:49]} 12. Be2 {[%emt 0:05:43]} Nd7 {[%emt 0:03:33]} 13. f4 {[%emt 0:09:11]} gxf4 {[%emt 0:03:02]} 14. exf4 {[%emt 0:01:49]} Nxe5 {[%emt 0:01:07]} 15. fxe5 {[%emt 0:01:21]} Qg5 {[%emt 0:06:15]} 16. O-O {[%emt 0:06:06]} Rg8 {[%emt 0:14:07]} 17. Bf3 {[%emt 0:01:27]} Be6 {[%emt 0:01:36]} 18. Kh1 {[%emt 0:01:23]} O-O-O {[%emt 0:02:37]} 19. a3 {[%emt 0:00:48]} Kb8 {[%emt 0:00:29]} 20. Qe2 {[%emt 0:03:44]} Qh4 {[%emt 0:05:24]} 21. Qf2 {[%emt 0:04:04]} Qg5 {[%emt 0:04:21]} 22. Qe2 {[%emt 0:01:29]} h5 {[%emt 0:02:01]} 23. b4 {[%emt 0:05:28]} Qh4 {[%emt 0:04:17]} 24. Qf2 {[%emt 0:08:00]} Qxf2 {[%emt 0:00:47]} 25. Rxf2 {[%emt 0:00:04]} Rh8 {[%emt 0:00:26]} 26. b5 {[%emt 0:02:50]} c5 {[%emt 0:02:15]} 27. dxc5 {[%emt 0:15:16]} Bxc5 {[%emt 0:00:21]} 28. Rd2 {[%emt 0:00:06]} Be3 {[%emt 0:01:44]} 29. Rdd1 {[%emt 0:01:53]} d4 {[%emt 0:00:41]} 30. Ne4 {[%emt 0:00:04]} Rd5 {[%emt 0:06:28]} 31. Nd6 {[%emt 0:01:23]} Rxe5 {[%emt 0:00:37]} 32. Nxb7 {[%emt 0:00:16]} Rxb5 {[%emt 0:01:20]} 33. Rab1 {[%emt 0:01:01]} Rb6 {[%emt 0:00:40]} 34. Nc5 {[%emt 0:00:40]} Bf5 {[%emt 0:03:05]} 35. Rb4 {[%emt 0:00:07]} Rxb4 {[%emt 0:01:04]} 36. axb4 {[%emt 0:01:31]} h4 {[%emt 0:02:35]} 37. Ra1 {[%emt 0:00:59]} d3 {[%emt 0:03:09]} 38. Ra5 {[%emt 0:00:41]} Bxc5 {[%emt 0:01:07]} 39. Rxc5 {[%emt 0:03:39]} Be6 {[%emt 0:00:26]} 40. Kg1 {[%emt 0:04:35]} d2 {[%emt 0:03:20]} 41. Bd1 {[%emt 0:02:28]} Rd8 {[%emt 0:01:45]} 42. Kf2 {[%emt 0:00:26]} Rd4 {[%emt 0:01:52]} 43. Ke3 {[%emt 0:01:17]} Rxb4 {[%emt 0:00:11]} 44. Kxd2 {[%emt 0:00:08]} Rd4+ {[%emt 0:01:07]} 45. Kc1 {[%emt 0:04:06]} Kb7 {[%emt 0:00:40]} 46. Bf3+ {[%emt 0:00:12]} Kb6 {[%emt 0:00:09]} 47. Rh5 {[%emt 0:00:52]} a5 {[%emt 0:00:32]} 48. Kb2 {[%emt 0:00:06]} Rb4+ {[%emt 0:00:56]} 49. Kc3 {[%emt 0:00:12]} Rc4+ {[%emt 0:00:16]} 50. Kb2 {[%emt 0:00:15]} Rf4 {[%emt 0:00:42]} 51. h3 {[%emt 0:01:24]} Bd7 {[%emt 0:02:31]} 52. Rh7 {[%emt 0:00:35]} Kc5 {[%emt 0:01:48]} 53. Rh8 {[%emt 0:00:47]} a4 {[%emt 0:01:10]} 54. Ka3 {[%emt 0:00:37]} Bxh3 {[%emt 0:01:48]} 55. gxh3 {[%emt 0:00:06]} Rxf3+ {[%emt 0:00:07]} 56. Kxa4 {[%emt 0:00:03]} Rxh3 {[%emt 0:00:06]} 57. Rh7 {[%emt 0:00:07]} f5 {[%emt 0:00:28]} 58. Rh5 {[%emt 0:00:06]} Rf3 {[%emt 0:00:16]} 59. Rxh4 f4 {[%emt 0:00:38]} 60. Rh5+ {[%emt 0:01:10]} Kd4 {[%emt 0:00:19]} 61. Kb4 {[%emt 0:00:16]} Rf1 {[%emt 0:00:28]} 62. Kb3 {[%emt 0:00:51]} Rc1 {[%emt 0:00:43]} 63. Kb2 {[%emt 0:00:23]} Rc8 {[%emt 0:00:05]} 64. Rf5 {[%emt 0:00:25]} Ke4 {[%emt 0:00:05]} 65. Rf7 {[%emt 0:00:04]} f3 {[%emt 0:00:05]} 66. Rf6 {[%emt 0:00:08]} Ke3 {[%emt 0:00:05]} 67. Rf7 {[%emt 0:00:06]} f2 {[%emt 0:00:05]} 68. Rf6 {[%emt 0:00:03]} Re8 {[%emt 0:00:26]} 0-1

[Event "POR-chT 1st Divison 2018"]
[Site "Maia"]
[Date "2018.07.17"]
[Round "2"]
[White "Eggert, Alberto"]
[Black "Ribeiro, Fernando"]
[Result "*"]
[WhiteElo "2142"]
[BlackElo "2165"]
[Annotator "NA"]
[PlyCount "69"]
[EventDate "2018.07.16"]
[EventType "team-tourn"]
[EventCountry "POR"]
[SourceTitle "playchess.com"]
[Source "ChessBase"]
[SourceQuality "1"]
[TimeControl "5400+30"]

1. d4 {[%emt 0:00:00]} Nf6 {[%emt 0:06:24]} 2. Nf3 {[%emt 0:00:17]} g6 {[%emt 0:00:20]} 3. c4 {[%emt 0:07:09]} Bg7 {[%emt 0:00:19]} 4. Nc3 {[%emt 0:00:27]} O-O {[%emt 0:00:28]} 5. Bg5 {[%emt 0:02:19]} h6 {[%emt 0:01:06]} 6. Bf4 {[%emt 0:00:05]} d6 {[%emt 0:01:52]} 7. h3 {[%emt 0:01:39]} Nbd7 {[%emt 0:08:33]} 8. g4 {[%emt 0:00:50]} c5 {[%emt 0:02:58]} 9. d5 {[%emt 0:00:38]} a6 {[%emt 0:03:43]} 10. a4 {[%emt 0:13:29]} Qa5 {[%emt 0:05:58]} 11. Bd2 {[%emt 0:00:10]} Qc7 {[%emt 0:01:51]} 12. Qc1 {[%emt 0:03:33]} h5 {[%emt 0:07:28]} 13. g5 {[%emt 0:11:56]} Nh7 {[%emt 0:00:21]} 14. e4 {[%emt 0:00:07]} Re8 {[%emt 0:07:02]} 15. Be2 {[%emt 0:07:35]} b6 {[%emt 0:02:16]} 16. Nh4 {[%emt 0:00:42]} Ndf8 {[%emt 0:04:54]} 17. f4 {[%emt 0:02:38]} e6 {[%emt 0:00:12]} 18. Qc2 {[%emt 0:13:12]} Bb7 {[%emt 0:01:41]} 19. O-O {[%emt 0:01:51]} Bd4+ {[%emt 0:01:14]} 20. Kh2 {[%emt 0:00:41]} Rab8 {[%emt 0:08:19]} 21. Bd3 {[%emt 0:13:45]} e5 {[%emt 0:12:43]} 22. f5 {[%emt 0:01:07]} Bxc3 {[%emt 0:00:58]} 23. bxc3 {[%emt 0:00:13]} Bc8 {[%emt 0:00:11]} 24. Be2 {[%emt 0:01:54]} Bd7 {[%emt 0:03:37]} 25. Qd1 {[%emt 0:01:49]} Rec8 {[%emt 0:00:56]} 26. Bxh5 {[%emt 0:00:23]} Be8 {[%emt 0:00:13]} 27. Bg4 {[%emt 0:01:41]} Rd8 {[%emt 0:00:02]} 28. f6 {[%emt 0:02:07]} Bd7 {[%emt 0:04:50]} 29. Qe1 {[%emt 0:03:58]} Bxg4 {[%emt 0:01:03]} 30. hxg4 {[%emt 0:00:01]} Qd7 {[%emt 0:00:15]} 31. Qg3 {[%emt 0:00:12]} b5 {[%emt 0:00:48]} 32. axb5 {[%emt 0:01:37]} axb5 {[%emt 0:00:01]} 33. Qh3 {[%emt 0:00:24]} Qe8 {[%emt 0:00:18]} 34. Nf5 {[%emt 0:01:13]} gxf5 {[%emt 0:00:11]} 35. Qh6 {[%emt 0:03:12]} *

[Event "POR-chT 1st Divison 2018"]
[Site "Maia"]
[Date "2018.07.17"]
[Round "2"]
[White "Dias, Ivo Rodrigues"]
[Black "Galvao, Henrique"]
[Result "1-0"]
[ECO "C40"]
[WhiteElo "2138"]
[BlackElo "2161"]
[Annotator "NA"]
[PlyCount "117"]
[EventDate "2018.07.16"]
[EventType "team-tourn"]
[EventCountry "POR"]
[SourceTitle "playchess.com"]
[Source "ChessBase"]
[SourceQuality "1"]
[TimeControl "5400+30"]

1. e4 {[%emt 0:00:00]} e5 {[%emt 0:01:49]} 2. Nf3 {[%emt 0:00:14]} d5 {[%emt 0:00:16]} 3. exd5 {[%emt 0:01:07]} e4 {[%emt 0:00:18]} 4. Qe2 {[%emt 0:01:06]} Nf6 {[%emt 0:00:06]} 5. d3 {[%emt 0:00:18]} Qxd5 {[%emt 0:03:28]} 6. Nbd2 {[%emt 0:00:18] LiveBook: 4 Games} Be7 {[%emt 0:01:59]} 7. dxe4 {[%emt 0:03:35]} Qa5 {[%emt 0:00:24]} 8. Qb5+ {[%emt 0:00:17]} Qxb5 {[%emt 0:00:25]} 9. Bxb5+ {[%emt 0:00:02]} c6 {[%emt 0:00:09]} 10. Bc4 {[%emt 0:02:28]} Nbd7 {[%emt 0:00:27]} 11. O-O {[%emt 0:01:56]} b5 {[%emt 0:00:50]} 12. Bb3 {[%emt 0:09:27]} Nc5 {[%emt 0:00:40]} 13. Re1 {[%emt 0:05:35]} O-O {[%emt 0:00:59]} 14. e5 $16 {[%emt 0:10:59]} Nxb3 {[%emt 0:05:58]} 15. Nxb3 {[%emt 0:03:13]} Nd5 {[%emt 0:00:11]} 16. c3 {[%emt 0:14:21]} h6 {[%emt 0:19:13]} 17. Nbd4 {[%emt 0:06:52]} Bd7 {[%emt 0:01:05]} 18. e6 {[%emt 0:02:37]} fxe6 {[%emt 0:00:06]} 19. Ne5 {[%emt 0:00:23]} Be8 {[%emt 0:03:52]} 20. Nxe6 {[%emt 0:04:53]} Rf6 {[%emt 0:00:52]} 21. Nd3 {[%emt 0:00:55]} Bf7 {[%emt 0:01:43]} 22. Nec5 {[%emt 0:13:08]} Bg6 {[%emt 0:05:22]} 23. Be3 {[%emt 0:02:07]} Nxe3 {[%emt 0:02:46]} 24. Rxe3 {[%emt 0:00:38]} Bxc5 {[%emt 0:00:57]} 25. Nxc5 {[%emt 0:00:08]} Rd8 {[%emt 0:00:09]} 26. Nb3 {[%emt 0:03:17]} a5 {[%emt 0:01:53]} 27. Re2 {[%emt 0:03:25]} a4 {[%emt 0:02:28]} 28. Nd4 {[%emt 0:01:47]} Kh7 {[%emt 0:12:13]} 29. Rae1 {[%emt 0:00:50]} b4 {[%emt 0:05:09]} 30. Ne6 {[%emt 0:01:16]} Rd6 {[%emt 0:00:16]} 31. cxb4 {[%emt 0:00:53]} Bd3 {[%emt 0:01:26]} 32. Re3 {[%emt 0:00:16]} Bc4 {[%emt 0:00:37]} 33. Nc5 {[%emt 0:00:10]} Rd4 {[%emt 0:02:15]} 34. a3 {[%emt 0:01:12]} Bd5 {[%emt 0:00:54]} 35. f3 {[%emt 0:01:52]} Rg6 {[%emt 0:02:18]} 36. Kf2 {[%emt 0:00:24]} Bc4 {[%emt 0:00:52]} 37. Ne4 {[%emt 0:01:00]} Bd5 {[%emt 0:02:14]} 38. h4 {[%emt 0:01:07]} Rc4 {[%emt 0:07:31]} 39. Rc3 {[%emt 0:02:16]} Rd4 {[%emt 0:02:11]} 40. Ke3 {[%emt 0:00:24]} Rc4 {[%emt 0:00:08]} 41. Rxc4 {[%emt 0:00:15]} Bxc4 {[%emt 0:00:06]} 42. Rc1 {[%emt 0:00:38]} Bd5 {[%emt 0:01:17]} 43. Rc2 {[%emt 0:00:13]} Re6 {[%emt 0:01:41]} 44. Kd4 {[%emt 0:00:30]} Kg6 {[%emt 0:00:41]} 45. Nc3 {[%emt 0:00:33]} Bb3 {[%emt 0:02:51]} 46. Re2 {[%emt 0:00:19]} Rf6 {[%emt 0:01:45]} 47. Kc5 {[%emt 0:01:33]} Kh5 {[%emt 0:02:46]} 48. Ne4 {[%emt 0:01:33]} Rf5+ {[%emt 0:01:54]} 49. Kxc6 {[%emt 0:00:28]} Kxh4 {[%emt 0:00:12]} 50. Re1 {[%emt 0:00:27]} Bd5+ {[%emt 0:01:39]} 51. Kd6 {[%emt 0:00:45]} Bxe4 {[%emt 0:00:48]} 52. Rxe4+ {[%emt 0:00:06]} Kg3 {[%emt 0:00:56]} 53. Rg4+ {[%emt 0:00:04]} Kf2 {[%emt 0:00:05]} 54. Rxg7 {[%emt 0:00:23]} Ke3 {[%emt 0:00:17]} 55. Kc6 {[%emt 0:00:20]} Kd3 {[%emt 0:00:27]} 56. b5 {[%emt 0:00:32]} Kc2 {[%emt 0:00:11]} 57. b6 {[%emt 0:00:13]} Kxb2 {[%emt 0:00:28]} 58. b7 {[%emt 0:00:10]} Rf8 {[%emt 0:00:05]} 59. Kc7 {[%emt 0:00:27]} 1-0

[Event "POR-chT 1st Divison 2018"]
[Site "Maia"]
[Date "2018.07.17"]
[Round "2"]
[White "Romano, Luis Miguel Pereira"]
[Black "Turcer, Dusan"]
[Result "1-0"]
[ECO "B33"]
[WhiteElo "2083"]
[BlackElo "2039"]
[Annotator "NA"]
[PlyCount "81"]
[EventDate "2018.07.16"]
[EventType "team-tourn"]
[EventCountry "POR"]
[SourceTitle "playchess.com"]
[Source "ChessBase"]
[SourceQuality "1"]
[TimeControl "5400+30"]

1. e4 {[%emt 0:00:00]} c5 {[%emt 0:00:00]} 2. Nf3 {[%emt 0:00:00]} Nc6 {[%emt 0:00:02]} 3. d4 {[%emt 0:00:00]} cxd4 {[%emt 0:00:06]} 4. Nxd4 {[%emt 0:00:00]} Nf6 {[%emt 0:00:06]} 5. Nc3 {[%emt 0:00:00]} e5 {[%emt 0:00:05]} 6. Ndb5 {[%emt 0:00:00]} d6 {[%emt 0:00:05]} 7. Bg5 {[%emt 0:00:01]} a6 {[%emt 0:00:05]} 8. Na3 {[%emt 0:00:04]} b5 {[%emt 0:00:03]} 9. Nd5 {[%emt 0:00:04]} Be7 {[%emt 0:00:05]} 10. Bxf6 {[%emt 0:00:04]} Bxf6 {[%emt 0:00:06]} 11. c3 {[%emt 0:00:05]} Bg5 {[%emt 0:00:04]} 12. Nc2 {[%emt 0:00:06]} O-O {[%emt 0:00:04]} 13. a4 {[%emt 0:00:05]} bxa4 {[%emt 0:00:05]} 14. Rxa4 {[%emt 0:00:11]} a5 {[%emt 0:00:08]} 15. Bc4 {[%emt 0:00:43]} Rb8 {[%emt 0:00:08]} 16. Ra2 {[%emt 0:00:06]} Kh8 {[%emt 0:00:07]} 17. h4 {[%emt 0:07:14] B33: Sicilian: Pelikan and Sveshnikov Variations} Bh6 {[%emt 0:00:06]} 18. Nce3 {[%emt 0:06:08]} Bxe3 {[%emt 0:04:47]} 19. Nxe3 {[%emt 0:01:20] LiveBook: 3 Games [#]} Be6 $16 {[%emt 0:00:30]} ({Predecessor:} 19... Ne7 $11 {remains equal.} 20. b3 f5 21. exf5 Nxf5 22. Nxf5 Bxf5 23. Rd2 Rb6 24. Qe2 Qe7 {½-½ (47) Naumann,A (2532)-Jakovenko,D (2662) playchess.com INT 2006}) 20. g3 {[%emt 0:06:34]} Ne7 {[%emt 0:01:41]} 21. O-O {[%emt 0:02:08]} Bh3 {[%emt 0:02:22]} 22. Re1 {[%emt 0:01:24]} f5 {[%emt 0:00:44]} 23. exf5 {[%emt 0:32:17]} Nxf5 {[%emt 0:14:57]} 24. Nxf5 {[%emt 0:00:20]} Bxf5 {[%emt 0:00:13]} 25. b3 {[%emt 0:00:12]} Qb6 {[%emt 0:06:55]} 26. Qd5 {[%emt 0:01:52]} a4 {[%emt 0:33:01]} 27. bxa4 {[%emt 0:07:10]} Rf6 {[%emt 0:00:45]} 28. Qd2 {[%emt 0:03:29]} Rbf8 {[%emt 0:05:06]} 29. Qe3 {[%emt 0:05:52]} Qa5 {[%emt 0:07:02]} 30. Rd1 {[%emt 0:12:00]} Bg4 {[%emt 0:02:42]} 31. Rdd2 {[%emt 0:02:43]} Bf3 {[%emt 0:04:04]} 32. Bf1 {[%emt 0:01:38]} Qa8 {[%emt 0:01:36]} 33. a5 {[%emt 0:00:43]} Rb8 {[%emt 0:02:47]} 34. Ra1 {[%emt 0:01:12]} Bc6 {[%emt 0:03:20]} 35. a6 {[%emt 0:01:06]} Rf3 {[%emt 0:00:18]} 36. Qg5 {[%emt 0:00:23]} Rf6 {[%emt 0:07:32]} 37. a7 {[%emt 0:01:18]} Rbf8 {[%emt 0:00:02]} 38. Rb2 {[%emt 0:01:16]} h6 {[%emt 0:05:48]} 39. Qe3 {[%emt 0:00:17]} Rf3 {[%emt 0:00:31]} 40. Qb6 {[%emt 0:00:23]} Rxc3 {[%emt 0:00:27]} 41. Qc7 {[%emt 0:00:20]} 1-0

[Event "POR-chT 1st Divison 2018"]
[Site "Maia"]
[Date "2018.07.17"]
[Round "2"]
[White "Guerreiro, Nuno"]
[Black "Novais, Carlos Joao Fernand"]
[Result "1-0"]
[ECO "A05"]
[WhiteElo "2050"]
[BlackElo "2121"]
[Annotator "NA"]
[PlyCount "65"]
[EventDate "2018.07.16"]
[EventType "team-tourn"]
[EventCountry "POR"]
[SourceTitle "playchess.com"]
[Source "ChessBase"]
[SourceQuality "1"]
[TimeControl "5400+30"]

1. Nf3 {[%emt 0:00:00]} Nf6 {[%emt 0:00:10]} 2. g3 {[%emt 0:00:00]} d5 {[%emt 0:01:23]} 3. Bg2 {[%emt 0:00:00]} e6 {[%emt 0:00:07]} 4. O-O {[%emt 0:00:00]} Be7 {[%emt 0:00:07]} 5. c4 {[%emt 0:00:05]} O-O {[%emt 0:00:13]} 6. b3 {[%emt 0:00:07]} c5 {[%emt 0:04:12]} 7. d3 {[%emt 0:02:31] LiveBook: 34 Games} Nc6 {[%emt 0:01:27]} 8. Bb2 {[%emt 0:00:50]} Qc7 {[%emt 0:02:24]} 9. Nbd2 {[%emt 0:00:17]} Rd8 {[%emt 0:03:40]} 10. cxd5 {[%emt 0:03:52]} exd5 {[%emt 0:01:11]} 11. d4 {[%emt 0:01:31]} cxd4 {[%emt 0:01:59]} 12. Nxd4 {[%emt 0:00:27]} Qb6 {[%emt 0:00:12]} 13. N2f3 {[%emt 0:02:00]} Ne4 {[%emt 0:02:10]} 14. Rc1 {[%emt 0:03:30]} Bc5 {[%emt 0:04:41]} 15. e3 $14 {[%emt 0:12:52]} Bg4 {[%emt 0:04:42]} 16. Qc2 {[%emt 0:03:40]} Nb4 {[%emt 0:03:29]} 17. Qb1 Bxf3 {[%emt 0:05:44]} 18. Nxf3 {[%emt 0:01:31]} Bxe3 {[%emt 0:00:06]} 19. fxe3 {[%emt 0:01:00]} Qxe3+ {[%emt 0:00:18]} 20. Kh1 {[%emt 0:00:17]} Nd3 {[%emt 0:00:20]} 21. Bd4 {[%emt 0:01:36]} Nef2+ {[%emt 0:02:27]} 22. Rxf2 {[%emt 0:09:24]} Nxf2+ {[%emt 0:01:17]} 23. Kg1 {[%emt 0:00:12]} Nh3+ {[%emt 0:00:08]} 24. Kf1 {[%emt 0:00:18]} Qh6 {[%emt 0:00:50]} 25. Rd1 {[%emt 0:05:12]} Rac8 {[%emt 0:02:38]} 26. Qb2 {[%emt 0:16:59]} Re8 {[%emt 0:05:14]} 27. b4 {[%emt 0:01:08]} g5 {[%emt 0:12:46]} 28. Ne5 {[%emt 0:09:30]} Qf6+ {[%emt 0:01:56]} 29. Nf3 {[%emt 0:00:45]} Qh6 {[%emt 0:00:16]} 30. b5 {[%emt 0:04:18]} g4 {[%emt 0:04:59]} 31. Nh4 {[%emt 0:02:14]} Nf4 {[%emt 0:01:24]} 32. Qd2 {[%emt 0:02:15]} Qe6 {[%emt 0:06:52]} 33. gxf4 {[%emt 0:00:53]} 1-0